[Event "Titled Tuesday Blitz January 18 2022"]
[White "Artemenko, Oleg"]
[Black "Fawzy, Adham"]
[WhiteFideId "14201798"]
[BlackFideId "10613129"]
[WhiteElo "2287"]
[BlackElo "2510"]
[Result "0-1"]
[Round "04"]
[TimeControl "180+1"]
[Date "2022.01.18"]
[WhiteClock "0:00:48"]
[BlackClock "0:01:34"]

1. d4 {[%clk 0:03:00]}  Nf6 {[%clk 0:02:57]} 2. Nc3 {[%clk 0:03:01]}  d5 {[%clk 0:02:57]} 3. Bf4 {[%clk 0:03:01]}  c6 {[%clk 0:02:57]} 4. f3 {[%clk 0:03:01]}  Bf5 {[%clk 0:02:54]} 5. g4 {[%clk 0:03:00]}  Bg6 {[%clk 0:02:54]} 6. h4 {[%clk 0:03:00]}  h6 {[%clk 0:02:54]} 7. e3 {[%clk 0:03:00]}  e6 {[%clk 0:02:55]} 8. Bd3 {[%clk 0:03:00]}  Bd6 {[%clk 0:02:49]} 9. Bxg6 {[%clk 0:03:00]}  fxg6 {[%clk 0:02:50]} 10. Qd3 {[%clk 0:02:57]}  Kf7 {[%clk 0:02:49]} 11. Nge2 {[%clk 0:02:56]}  Nh7 {[%clk 0:02:26]} 12. Bxd6 {[%clk 0:02:53]}  Qxd6 {[%clk 0:02:27]} 13. Nf4 {[%clk 0:02:54]}  Nf8 {[%clk 0:02:28]} 14. O-O-O {[%clk 0:02:51]}  Nbd7 {[%clk 0:02:28]} 15. h5 {[%clk 0:02:41]}  g5 {[%clk 0:02:28]} 16. Ng6 {[%clk 0:02:41]}  Nxg6 {[%clk 0:02:26]} 17. Qxg6+ {[%clk 0:02:42]}  Kg8 {[%clk 0:02:26]} 18. Rdf1 {[%clk 0:02:33]}  Rf8 {[%clk 0:02:25]} 19. Ne2 {[%clk 0:02:25]}  Rf6 {[%clk 0:02:25]} 20. Qd3 {[%clk 0:02:25]}  e5 {[%clk 0:02:25]} 21. Ng3 {[%clk 0:02:08]}  e4 {[%clk 0:02:23]} 22. fxe4 {[%clk 0:02:09]}  Qxg3 {[%clk 0:02:22]} 23. e5 {[%clk 0:02:09]}  Rf3 {[%clk 0:02:14]} 24. Rxf3 {[%clk 0:02:06]}  Qxf3 {[%clk 0:02:15]} 25. Rf1 {[%clk 0:02:06]}  Qe4 {[%clk 0:02:15]} 26. Qxe4 {[%clk 0:01:49]}  dxe4 {[%clk 0:02:15]} 27. c4 {[%clk 0:01:48]}  Nb6 {[%clk 0:01:44]} 28. b3 {[%clk 0:01:41]}  g6 {[%clk 0:01:45]} 29. hxg6 {[%clk 0:01:27]}  Kg7 {[%clk 0:01:45]} 30. Rf6 {[%clk 0:01:20]}  h5 {[%clk 0:01:45]} 31. gxh5 {[%clk 0:01:20]}  Rxh5 {[%clk 0:01:44]} 32. Kd1 {[%clk 0:01:13]}  Rh1+ {[%clk 0:01:36]} 33. Ke2 {[%clk 0:01:12]}  Rh2+ {[%clk 0:01:36]} 34. Kf1 {[%clk 0:01:11]}  Rxa2 {[%clk 0:01:34]} 35. Rf7+ {[%clk 0:01:12]}  Kxg6 {[%clk 0:01:35]} 36. Rxb7 {[%clk 0:01:12]}  Rb2 {[%clk 0:01:33]} 37. Rxa7 {[%clk 0:01:03]}  Rxb3 {[%clk 0:01:33]} 38. Rb7 {[%clk 0:01:03]}  Rb1+ {[%clk 0:01:32]} 39. Kg2 {[%clk 0:01:02]}  Rb2+ {[%clk 0:01:33]} 40. Kg3 {[%clk 0:01:00]}  Nxc4 {[%clk 0:01:33]} 41. Rc7 {[%clk 0:00:56]}  Nxe3 {[%clk 0:01:34]} 42. Rxc6+ {[%clk 0:00:56]}  Kh5 {[%clk 0:01:34]} 43. Rf6 {[%clk 0:00:48]}  Rg2+ {[%clk 0:01:34]} 0-1


[Site "https://www.chess.com"]

[Event "Titled Tuesday Blitz January 18 2022"]
[White "Balabayeva, Xeniya"]
[Black "Brodowski, Piotr"]
[WhiteFideId "13719688"]
[BlackFideId "1124480"]
[WhiteElo "1940"]
[BlackElo "2422"]
[Result "1-0"]
[Round "04"]
[TimeControl "180+1"]
[Date "2022.01.18"]
[WhiteClock "0:00:05"]
[BlackClock "0:00:10"]

1. e4 {[%clk 0:02:28]}  d6 {[%clk 0:02:58]} 2. d4 {[%clk 0:02:25]}  Nf6 {[%clk 0:02:57]} 3. Nc3 {[%clk 0:02:25]}  g6 {[%clk 0:02:57]} 4. g3 {[%clk 0:02:24]}  Bg7 {[%clk 0:02:52]} 5. Bg2 {[%clk 0:02:24]}  c6 {[%clk 0:02:51]} 6. a4 {[%clk 0:02:23]}  O-O {[%clk 0:02:50]} 7. Nge2 {[%clk 0:02:23]}  a5 {[%clk 0:02:49]} 8. h3 {[%clk 0:02:22]}  Nbd7 {[%clk 0:02:46]} 9. Be3 {[%clk 0:02:19]}  e5 {[%clk 0:02:43]} 10. O-O {[%clk 0:02:17]}  Re8 {[%clk 0:02:42]} 11. Re1 {[%clk 0:02:10]}  Qc7 {[%clk 0:02:39]} 12. Qd2 {[%clk 0:02:08]}  exd4 {[%clk 0:02:20]} 13. Nxd4 {[%clk 0:02:03]}  Nc5 {[%clk 0:02:17]} 14. Bf4 {[%clk 0:01:53]}  Nfd7 {[%clk 0:01:48]} 15. Bh6 {[%clk 0:01:25]}  Bh8 {[%clk 0:01:47]} 16. Rad1 {[%clk 0:01:21]}  Ne5 {[%clk 0:01:40]} 17. b3 {[%clk 0:01:19]}  Ne6 {[%clk 0:01:01]} 18. Nde2 {[%clk 0:01:00]}  f6 {[%clk 0:00:49]} 19. Be3 {[%clk 0:00:46]}  Nf7 {[%clk 0:00:47]} 20. Nd4 {[%clk 0:00:42]}  Nc5 {[%clk 0:00:41]} 21. Bf4 {[%clk 0:00:35]}  Nd7 {[%clk 0:00:27]} 22. Nde2 {[%clk 0:00:24]}  Nde5 {[%clk 0:00:27]} 23. Be3 {[%clk 0:00:22]}  b6 {[%clk 0:00:27]} 24. Kh2 {[%clk 0:00:20]}  Ba6 {[%clk 0:00:27]} 25. Nd4 {[%clk 0:00:18]}  Rad8 {[%clk 0:00:23]} 26. f4 {[%clk 0:00:17]}  Nd7 {[%clk 0:00:23]} 27. Bf2 {[%clk 0:00:17]}  Nc5 {[%clk 0:00:22]} 28. g4 {[%clk 0:00:16]}  Bc8 {[%clk 0:00:19]} 29. Bg3 {[%clk 0:00:16]}  Bd7 {[%clk 0:00:12]} 30. Bf3 {[%clk 0:00:15]}  Qc8 {[%clk 0:00:13]} 31. Re2 {[%clk 0:00:15]}  h6 {[%clk 0:00:12]} 32. Rde1 {[%clk 0:00:14]}  Kh7 {[%clk 0:00:11]} 33. Kg2 {[%clk 0:00:12]}  g5 {[%clk 0:00:12]} 34. Rh1 {[%clk 0:00:10]}  Ne6 {[%clk 0:00:10]} 35. Nxe6 {[%clk 0:00:09]}  Bxe6 {[%clk 0:00:11]} 36. f5 {[%clk 0:00:09]}  Bd7 {[%clk 0:00:11]} 37. h4 {[%clk 0:00:09]}  Kg8 {[%clk 0:00:10]} 38. hxg5 {[%clk 0:00:09]}  fxg5 {[%clk 0:00:11]} 39. Nd1 {[%clk 0:00:07]}  d5 {[%clk 0:00:07]} 40. exd5 {[%clk 0:00:07]}  cxd5 {[%clk 0:00:07]} 41. Rxe8+ {[%clk 0:00:07]}  Rxe8 {[%clk 0:00:07]} 42. Re1 {[%clk 0:00:06]}  Rxe1 {[%clk 0:00:06]} 43. Bxe1 {[%clk 0:00:07]}  Bc6 {[%clk 0:00:04]} 44. Ne3 {[%clk 0:00:07]}  d4 {[%clk 0:00:03]} 45. Nd5 {[%clk 0:00:06]}  Qd7 {[%clk 0:00:01]} 46. Nxb6 {[%clk 0:00:06]}  Bxf3+ {[%clk 0:00:01]} 47. Kf2 {[%clk 0:00:04]}  Qc6 {[%clk 0:00:02]} 48. Nc4 {[%clk 0:00:04]}  Bxg4 {[%clk 0:00:02]} 49. Qd3 {[%clk 0:00:04]}  Ne5 {[%clk 0:00:02]} 50. Nxe5 {[%clk 0:00:03]}  Bxe5 {[%clk 0:00:03]} 51. Bd2 {[%clk 0:00:03]}  Qe4 {[%clk 0:00:03]} 52. Qxe4 {[%clk 0:00:03]}  Bf6 {[%clk 0:00:03]} 53. Qxg4 {[%clk 0:00:03]}  Kg7 {[%clk 0:00:03]} 54. Qe4 {[%clk 0:00:04]}  h5 {[%clk 0:00:03]} 55. Bxa5 {[%clk 0:00:04]}  h4 {[%clk 0:00:04]} 56. Bd2 {[%clk 0:00:04]}  h3 {[%clk 0:00:04]} 57. Qg4 {[%clk 0:00:04]}  h2 {[%clk 0:00:04]} 58. Kg2 {[%clk 0:00:04]}  d3 {[%clk 0:00:05]} 59. cxd3 {[%clk 0:00:04]}  Be5 {[%clk 0:00:06]} 60. Bxg5 {[%clk 0:00:05]}  Kf8 {[%clk 0:00:06]} 61. Bf4 {[%clk 0:00:05]}  Bf6 {[%clk 0:00:06]} 62. Qg6 {[%clk 0:00:05]}  Ke7 {[%clk 0:00:07]} 63. Bg5 {[%clk 0:00:05]}  h1=Q+ {[%clk 0:00:07]} 64. Kxh1 {[%clk 0:00:04]}  Kf8 {[%clk 0:00:02]} 65. Qxf6+ {[%clk 0:00:04]}  Kg8 {[%clk 0:00:03]} 66. Qg6+ {[%clk 0:00:04]}  Kf8 {[%clk 0:00:04]} 67. Bh6+ {[%clk 0:00:04]}  Ke7 {[%clk 0:00:04]} 68. f6+ {[%clk 0:00:04]}  Kd6 {[%clk 0:00:05]} 69. f7+ {[%clk 0:00:04]}  Kc5 {[%clk 0:00:06]} 70. f8=Q+ {[%clk 0:00:04]}  Kd4 {[%clk 0:00:07]} 71. Qfd6+ {[%clk 0:00:04]}  Kc3 {[%clk 0:00:08]} 72. Qgf6+ {[%clk 0:00:04]}  Kc2 {[%clk 0:00:08]} 73. d4 {[%clk 0:00:04]}  Kb2 {[%clk 0:00:08]} 74. Qde5 {[%clk 0:00:05]}  Ka2 {[%clk 0:00:09]} 75. d5 {[%clk 0:00:05]}  Kb1 {[%clk 0:00:10]} 76. Qb2# {[%clk 0:00:05]} 1-0


[Site "https://www.chess.com"]

[Event "Titled Tuesday Blitz January 18 2022"]
[White "Barria Zuniga, Daniel"]
[Black "Pichot, Alan"]
[WhiteFideId "3400816"]
[BlackFideId "110973"]
[WhiteElo "2414"]
[BlackElo "2543"]
[Result "0-1"]
[Round "04"]
[TimeControl "180+1"]
[Date "2022.01.18"]
[WhiteClock "0:00:05"]
[BlackClock "0:00:07"]

1. c4 {[%clk 0:02:58]}  c5 {[%clk 0:02:58]} 2. Nc3 {[%clk 0:02:56]}  Nc6 {[%clk 0:02:58]} 3. g3 {[%clk 0:02:57]}  g6 {[%clk 0:02:58]} 4. Bg2 {[%clk 0:02:57]}  Bg7 {[%clk 0:02:59]} 5. a3 {[%clk 0:02:57]}  d6 {[%clk 0:02:58]} 6. Rb1 {[%clk 0:02:57]}  a5 {[%clk 0:02:53]} 7. Nh3 {[%clk 0:02:49]}  e6 {[%clk 0:02:51]} 8. O-O {[%clk 0:02:49]}  Nge7 {[%clk 0:02:49]} 9. b3 {[%clk 0:02:43]}  O-O {[%clk 0:02:48]} 10. Bb2 {[%clk 0:02:43]}  b6 {[%clk 0:02:42]} 11. e3 {[%clk 0:02:41]}  Bb7 {[%clk 0:02:42]} 12. Qe2 {[%clk 0:02:41]}  d5 {[%clk 0:02:38]} 13. d3 {[%clk 0:02:31]}  d4 {[%clk 0:02:36]} 14. Na4 {[%clk 0:02:29]}  Rb8 {[%clk 0:02:28]} 15. e4 {[%clk 0:02:27]}  Ba8 {[%clk 0:02:27]} 16. Bc1 {[%clk 0:02:24]}  e5 {[%clk 0:02:22]} 17. f4 {[%clk 0:02:22]}  exf4 {[%clk 0:02:18]} 18. gxf4 {[%clk 0:02:18]}  f5 {[%clk 0:02:17]} 19. Ng5 {[%clk 0:02:16]}  Qd6 {[%clk 0:02:09]} 20. Bd2 {[%clk 0:02:00]}  h6 {[%clk 0:02:06]} 21. e5 {[%clk 0:01:56]}  Qd7 {[%clk 0:02:03]} 22. Nf3 {[%clk 0:01:54]}  Nd8 {[%clk 0:02:01]} 23. Nh4 {[%clk 0:01:36]}  Bc6 {[%clk 0:02:01]} 24. Bxc6 {[%clk 0:01:34]}  Qxc6 {[%clk 0:02:01]} 25. Qg2 {[%clk 0:01:34]}  Qe8 {[%clk 0:01:49]} 26. Kh1 {[%clk 0:01:27]}  Ne6 {[%clk 0:01:47]} 27. Rg1 {[%clk 0:01:26]}  Kh7 {[%clk 0:01:47]} 28. Rbf1 {[%clk 0:01:02]}  Rg8 {[%clk 0:01:16]} 29. Rf3 {[%clk 0:00:56]}  Bf8 {[%clk 0:01:16]} 30. Rg3 {[%clk 0:00:52]}  h5 {[%clk 0:00:46]} 31. Qf3 {[%clk 0:00:24]}  Bh6 {[%clk 0:00:44]} 32. Nb2 {[%clk 0:00:20]}  Rc8 {[%clk 0:00:35]} 33. b4 {[%clk 0:00:20]}  axb4 {[%clk 0:00:32]} 34. axb4 {[%clk 0:00:21]}  Qc6 {[%clk 0:00:33]} 35. Qxc6 {[%clk 0:00:20]}  Rxc6 {[%clk 0:00:34]} 36. b5 {[%clk 0:00:20]}  Rcc8 {[%clk 0:00:30]} 37. Na4 {[%clk 0:00:21]}  Rb8 {[%clk 0:00:29]} 38. Ng2 {[%clk 0:00:16]}  Rb7 {[%clk 0:00:28]} 39. Ra1 {[%clk 0:00:16]}  Ra8 {[%clk 0:00:27]} 40. Ne1 {[%clk 0:00:09]}  Rba7 {[%clk 0:00:27]} 41. Nxb6 {[%clk 0:00:09]}  Rxa1 {[%clk 0:00:27]} 42. Nxa8 {[%clk 0:00:10]}  Bxf4 {[%clk 0:00:16]} 43. Bxf4 {[%clk 0:00:09]}  Nxf4 {[%clk 0:00:17]} 44. Rg1 {[%clk 0:00:07]}  Rxa8 {[%clk 0:00:16]} 45. Nf3 {[%clk 0:00:07]}  Nxd3 {[%clk 0:00:17]} 46. Rb1 {[%clk 0:00:04]}  Kh6 {[%clk 0:00:14]} 47. b6 {[%clk 0:00:04]}  Nb4 {[%clk 0:00:12]} 48. Nxd4 {[%clk 0:00:03]}  Rb8 {[%clk 0:00:10]} 49. Ne6 {[%clk 0:00:03]}  Rxb6 {[%clk 0:00:08]} 50. Nxc5 {[%clk 0:00:03]}  Rc6 {[%clk 0:00:07]} 51. Rxb4 {[%clk 0:00:03]}  Rxc5 {[%clk 0:00:08]} 52. e6 {[%clk 0:00:03]}  Rc6 {[%clk 0:00:07]} 53. Kg2 {[%clk 0:00:04]}  Rxe6 {[%clk 0:00:07]} 54. Kf3 {[%clk 0:00:05]}  g5 {[%clk 0:00:07]} 55. h3 {[%clk 0:00:04]}  Kg6 {[%clk 0:00:07]} 56. Rb5 {[%clk 0:00:04]}  Kf6 {[%clk 0:00:08]} 57. h4 {[%clk 0:00:04]}  gxh4 {[%clk 0:00:07]} 58. Kf4 {[%clk 0:00:04]}  Ng6+ {[%clk 0:00:08]} 59. Kf3 {[%clk 0:00:04]}  Kg5 {[%clk 0:00:08]} 60. Kg2 {[%clk 0:00:04]}  Nf4+ {[%clk 0:00:08]} 61. Kf2 {[%clk 0:00:04]}  Kg4 {[%clk 0:00:08]} 62. Rb8 {[%clk 0:00:04]}  Re2+ {[%clk 0:00:08]} 63. Kf1 {[%clk 0:00:05]}  Rc2 {[%clk 0:00:08]} 64. Rd8 {[%clk 0:00:05]}  h3 {[%clk 0:00:07]} 65. Rg8+ {[%clk 0:00:04]}  Kf3 {[%clk 0:00:07]} 66. Ke1 {[%clk 0:00:05]}  h2 {[%clk 0:00:07]} 0-1


[Site "https://www.chess.com"]

[Event "Titled Tuesday Blitz January 18 2022"]
[White "Bluebaum, Matthias"]
[Black "Rasulov, Vugar"]
[WhiteFideId "24651516"]
[BlackFideId "13402390"]
[WhiteElo "2550"]
[BlackElo "2560"]
[Result "1-0"]
[Round "04"]
[TimeControl "180+1"]
[Date "2022.01.18"]
[WhiteClock "0:01:31"]
[BlackClock "0:00:18"]

1. Nf3 {[%clk 0:03:00]}  Nf6 {[%clk 0:02:59]} 2. b3 {[%clk 0:03:01]}  g6 {[%clk 0:02:58]} 3. Bb2 {[%clk 0:03:01]}  Bg7 {[%clk 0:02:59]} 4. g3 {[%clk 0:03:01]}  O-O {[%clk 0:02:59]} 5. Bg2 {[%clk 0:02:59]}  d6 {[%clk 0:03:00]} 6. d4 {[%clk 0:02:59]}  e5 {[%clk 0:02:54]} 7. dxe5 {[%clk 0:03:00]}  Nfd7 {[%clk 0:02:53]} 8. c4 {[%clk 0:02:59]}  dxe5 {[%clk 0:02:51]} 9. Nc3 {[%clk 0:02:55]}  e4 {[%clk 0:02:50]} 10. Nd2 {[%clk 0:02:54]}  e3 {[%clk 0:02:50]} 11. fxe3 {[%clk 0:02:55]}  c6 {[%clk 0:02:45]} 12. O-O {[%clk 0:02:55]}  Qe7 {[%clk 0:02:46]} 13. Kh1 {[%clk 0:02:52]}  Na6 {[%clk 0:02:46]} 14. a3 {[%clk 0:02:49]}  Ne5 {[%clk 0:02:34]} 15. h3 {[%clk 0:02:39]}  Rd8 {[%clk 0:02:31]} 16. Qc2 {[%clk 0:02:33]}  Bf5 {[%clk 0:02:27]} 17. e4 {[%clk 0:02:31]}  Be6 {[%clk 0:02:25]} 18. Nf3 {[%clk 0:02:28]}  h5 {[%clk 0:02:17]} 19. Rad1 {[%clk 0:02:22]}  Nc5 {[%clk 0:02:10]} 20. b4 {[%clk 0:02:18]}  Nxc4 {[%clk 0:01:57]} 21. bxc5 {[%clk 0:02:18]}  Ne3 {[%clk 0:01:56]} 22. Qc1 {[%clk 0:02:16]}  Nxf1 {[%clk 0:01:51]} 23. Rxf1 {[%clk 0:02:15]}  Qxc5 {[%clk 0:01:50]} 24. e5 {[%clk 0:02:16]}  Bf5 {[%clk 0:01:45]} 25. Qf4 {[%clk 0:02:12]}  Rd7 {[%clk 0:01:24]} 26. g4 {[%clk 0:02:12]}  hxg4 {[%clk 0:01:24]} 27. hxg4 {[%clk 0:02:12]}  Qb6 {[%clk 0:01:04]} 28. Ba1 {[%clk 0:02:08]}  Be6 {[%clk 0:01:04]} 29. Ne4 {[%clk 0:02:07]}  Qd8 {[%clk 0:00:57]} 30. Nf6+ {[%clk 0:02:05]}  Bxf6 {[%clk 0:00:57]} 31. exf6 {[%clk 0:02:06]}  Rd1 {[%clk 0:00:56]} 32. Ng5 {[%clk 0:01:52]}  Rxf1+ {[%clk 0:00:55]} 33. Bxf1 {[%clk 0:01:53]}  Bb3 {[%clk 0:00:39]} 34. Kg1 {[%clk 0:01:43]}  Qb8 {[%clk 0:00:27]} 35. Be5 {[%clk 0:01:42]}  Qc8 {[%clk 0:00:24]} 36. Qg3 {[%clk 0:01:36]}  Qe8 {[%clk 0:00:18]} 37. Qh2 {[%clk 0:01:31]} 1-0


[Site "https://www.chess.com"]

[Event "Titled Tuesday Blitz January 18 2022"]
[White "Csonka, Balazs"]
[Black "Ivanov, Oleg"]
[WhiteFideId "742910"]
[BlackFideId "4103114"]
[WhiteElo "2404"]
[BlackElo "2839"]
[Result "1/2-1/2"]
[Round "04"]
[TimeControl "180+1"]
[Date "2022.01.18"]
[WhiteClock "0:00:04"]
[BlackClock "0:00:13"]

1. e4 {[%clk 0:03:00]}  c5 {[%clk 0:02:55]} 2. Nf3 {[%clk 0:03:00]}  Nc6 {[%clk 0:02:54]} 3. Bb5 {[%clk 0:02:59]}  d6 {[%clk 0:02:54]} 4. O-O {[%clk 0:02:58]}  Bd7 {[%clk 0:02:53]} 5. Re1 {[%clk 0:02:57]}  a6 {[%clk 0:02:52]} 6. Bxc6 {[%clk 0:02:55]}  Bxc6 {[%clk 0:02:52]} 7. d4 {[%clk 0:02:56]}  cxd4 {[%clk 0:02:49]} 8. Nxd4 {[%clk 0:02:55]}  e6 {[%clk 0:02:46]} 9. c4 {[%clk 0:02:37]}  Rc8 {[%clk 0:02:45]} 10. b3 {[%clk 0:02:33]}  Nf6 {[%clk 0:02:41]} 11. Nc3 {[%clk 0:02:20]}  Be7 {[%clk 0:02:33]} 12. Bb2 {[%clk 0:01:39]}  O-O {[%clk 0:02:32]} 13. Qd2 {[%clk 0:01:29]}  Qa5 {[%clk 0:02:20]} 14. Rad1 {[%clk 0:01:22]}  Qh5 {[%clk 0:02:15]} 15. Nxc6 {[%clk 0:01:04]}  Rxc6 {[%clk 0:02:08]} 16. Qe2 {[%clk 0:01:04]}  Qa5 {[%clk 0:02:00]} 17. e5 {[%clk 0:00:37]}  dxe5 {[%clk 0:01:46]} 18. Qxe5 {[%clk 0:00:38]}  Qxe5 {[%clk 0:01:43]} 19. Rxe5 {[%clk 0:00:39]}  Rd8 {[%clk 0:01:28]} 20. Rxd8+ {[%clk 0:00:37]}  Bxd8 {[%clk 0:01:29]} 21. Re1 {[%clk 0:00:32]}  Rd6 {[%clk 0:01:27]} 22. Rd1 {[%clk 0:00:32]}  Rxd1+ {[%clk 0:01:25]} 23. Nxd1 {[%clk 0:00:33]}  Ne4 {[%clk 0:01:24]} 24. Kf1 {[%clk 0:00:23]}  f6 {[%clk 0:01:14]} 25. Ke2 {[%clk 0:00:20]}  e5 {[%clk 0:01:14]} 26. Ne3 {[%clk 0:00:17]}  Kf7 {[%clk 0:01:10]} 27. f3 {[%clk 0:00:17]}  Nd6 {[%clk 0:01:04]} 28. c5 {[%clk 0:00:16]}  Nb5 {[%clk 0:01:00]} 29. Kd3 {[%clk 0:00:13]}  Ke6 {[%clk 0:00:59]} 30. b4 {[%clk 0:00:10]}  Nc7 {[%clk 0:00:46]} 31. Kc4 {[%clk 0:00:09]}  f5 {[%clk 0:00:42]} 32. a4 {[%clk 0:00:08]}  Bg5 {[%clk 0:00:42]} 33. Nc2 {[%clk 0:00:04]}  Nd5 {[%clk 0:00:41]} 34. b5 {[%clk 0:00:04]}  axb5+ {[%clk 0:00:41]} 35. axb5 {[%clk 0:00:05]}  Ne3+ {[%clk 0:00:35]} 36. Nxe3 {[%clk 0:00:05]}  Bxe3 {[%clk 0:00:36]} 37. c6 {[%clk 0:00:04]}  bxc6 {[%clk 0:00:35]} 38. bxc6 {[%clk 0:00:05]}  Kd6 {[%clk 0:00:22]} 39. Bxe5+ {[%clk 0:00:04]}  Kxc6 {[%clk 0:00:22]} 40. Bxg7 {[%clk 0:00:05]}  Kd6 {[%clk 0:00:20]} 41. Bd4 {[%clk 0:00:04]}  Bc1 {[%clk 0:00:19]} 42. Kd3 {[%clk 0:00:03]}  Kd5 {[%clk 0:00:18]} 43. Be3 {[%clk 0:00:03]}  Bb2 {[%clk 0:00:18]} 44. Ke2 {[%clk 0:00:03]}  Be5 {[%clk 0:00:15]} 45. h3 {[%clk 0:00:03]}  h5 {[%clk 0:00:14]} 46. Bf2 {[%clk 0:00:02]}  Ke6 {[%clk 0:00:14]} 47. Be3 {[%clk 0:00:02]}  Kf6 {[%clk 0:00:13]} 48. Kd3 {[%clk 0:00:02]}  Kg6 {[%clk 0:00:13]} 49. Bd4 {[%clk 0:00:02]}  Bd6 {[%clk 0:00:13]} 50. Be3 {[%clk 0:00:02]}  Bc7 {[%clk 0:00:13]} 51. Kc4 {[%clk 0:00:03]}  Bd6 {[%clk 0:00:13]} 52. Kd5 {[%clk 0:00:03]}  Bc7 {[%clk 0:00:13]} 53. Ke6 {[%clk 0:00:03]}  Bb8 {[%clk 0:00:13]} 54. g4 {[%clk 0:00:03]}  hxg4 {[%clk 0:00:13]} 55. fxg4 {[%clk 0:00:02]}  fxg4 {[%clk 0:00:13]} 56. hxg4 {[%clk 0:00:03]}  Bc7 {[%clk 0:00:13]} 57. Bf4 {[%clk 0:00:03]}  Bxf4 {[%clk 0:00:12]} 58. g5 {[%clk 0:00:04]}  Kxg5 {[%clk 0:00:13]} 1/2-1/2


[Site "https://www.chess.com"]

[Event "Titled Tuesday Blitz January 18 2022"]
[White "De Silva, L M S T"]
[Black "Bilan, Danila"]
[WhiteFideId "9953698"]
[BlackFideId "24161918"]
[WhiteElo "1631"]
[BlackElo "2164"]
[Result "1/2-1/2"]
[Round "04"]
[TimeControl "180+1"]
[Date "2022.01.18"]
[WhiteClock "0:02:10"]
[BlackClock "0:01:39"]

1. e4 {[%clk 0:03:00]}  c6 {[%clk 0:03:00]} 2. d4 {[%clk 0:03:00]}  d5 {[%clk 0:03:01]} 3. Nc3 {[%clk 0:03:01]}  dxe4 {[%clk 0:03:01]} 4. Nxe4 {[%clk 0:03:02]}  Bf5 {[%clk 0:03:01]} 5. Ng3 {[%clk 0:03:02]}  Bg6 {[%clk 0:03:02]} 6. h4 {[%clk 0:03:03]}  h6 {[%clk 0:03:02]} 7. Nf3 {[%clk 0:03:03]}  Nd7 {[%clk 0:03:03]} 8. h5 {[%clk 0:03:04]}  Bh7 {[%clk 0:03:03]} 9. Bd3 {[%clk 0:03:05]}  Bxd3 {[%clk 0:03:04]} 10. Qxd3 {[%clk 0:03:06]}  Qc7 {[%clk 0:03:05]} 11. Bd2 {[%clk 0:03:06]}  e6 {[%clk 0:03:06]} 12. O-O-O {[%clk 0:03:06]}  Bd6 {[%clk 0:03:06]} 13. Ne4 {[%clk 0:03:03]}  Ngf6 {[%clk 0:03:06]} 14. Kb1 {[%clk 0:03:02]}  Nxe4 {[%clk 0:02:58]} 15. Qxe4 {[%clk 0:03:03]}  O-O-O {[%clk 0:02:57]} 16. c4 {[%clk 0:03:02]}  c5 {[%clk 0:02:56]} 17. Bc3 {[%clk 0:02:59]}  Nf6 {[%clk 0:02:47]} 18. Qe2 {[%clk 0:02:57]}  Qc6 {[%clk 0:02:45]} 19. g4 {[%clk 0:02:42]}  Qe4+ {[%clk 0:02:40]} 20. Qxe4 {[%clk 0:02:39]}  Nxe4 {[%clk 0:02:41]} 21. Be1 {[%clk 0:02:36]}  cxd4 {[%clk 0:02:36]} 22. Rxd4 {[%clk 0:02:34]}  f5 {[%clk 0:02:32]} 23. gxf5 {[%clk 0:02:33]}  exf5 {[%clk 0:02:33]} 24. Rg1 {[%clk 0:02:32]}  Bc5 {[%clk 0:02:17]} 25. Rxd8+ {[%clk 0:02:31]}  Rxd8 {[%clk 0:02:18]} 26. Kc2 {[%clk 0:02:30]}  Rd7 {[%clk 0:02:10]} 27. Ne5 {[%clk 0:02:29]}  Re7 {[%clk 0:02:06]} 28. Nd3 {[%clk 0:02:29]}  Bxf2 {[%clk 0:01:40]} 29. Nxf2 {[%clk 0:02:09]}  Nxf2 {[%clk 0:01:39]} 30. Bxf2 {[%clk 0:02:10]}  Re2+ {[%clk 0:01:40]} 31. Kc3 {[%clk 0:02:11]}  Rxf2 {[%clk 0:01:39]} 32. Rxg7 {[%clk 0:02:12]}  Rh2 {[%clk 0:01:38]} 33. Rg8+ {[%clk 0:02:09]}  Kc7 {[%clk 0:01:38]} 34. Rg7+ {[%clk 0:02:10]}  Kc8 {[%clk 0:01:38]} 35. Rg8+ {[%clk 0:02:09]}  Kc7 {[%clk 0:01:38]} 36. Rg7+ {[%clk 0:02:10]}  Kc8 {[%clk 0:01:39]} 1/2-1/2


[Site "https://www.chess.com"]

[Event "Titled Tuesday Blitz January 18 2022"]
[White "Donchenko, Alexander"]
[Black "Sviridov, Valery"]
[WhiteFideId "24603295"]
[BlackFideId "4120680"]
[WhiteElo "2539"]
[BlackElo "2454"]
[Result "1/2-1/2"]
[Round "04"]
[TimeControl "180+1"]
[Date "2022.01.18"]
[WhiteClock "0:00:10"]
[BlackClock "0:00:11"]

1. d4 {[%clk 0:03:00]}  g6 {[%clk 0:02:59]} 2. Nf3 {[%clk 0:03:00]}  Bg7 {[%clk 0:03:00]} 3. g3 {[%clk 0:03:01]}  d6 {[%clk 0:03:00]} 4. Bg2 {[%clk 0:03:02]}  Nf6 {[%clk 0:03:00]} 5. O-O {[%clk 0:03:02]}  O-O {[%clk 0:03:01]} 6. b3 {[%clk 0:03:03]}  Nbd7 {[%clk 0:02:58]} 7. Bb2 {[%clk 0:03:03]}  e5 {[%clk 0:02:59]} 8. dxe5 {[%clk 0:03:03]}  Ng4 {[%clk 0:02:59]} 9. Qc1 {[%clk 0:03:03]}  dxe5 {[%clk 0:03:00]} 10. Rd1 {[%clk 0:03:02]}  Qe7 {[%clk 0:02:59]} 11. Nc3 {[%clk 0:03:01]}  Ngf6 {[%clk 0:02:50]} 12. Ba3 {[%clk 0:02:57]}  c5 {[%clk 0:02:50]} 13. e4 {[%clk 0:02:54]}  b6 {[%clk 0:02:18]} 14. Nd2 {[%clk 0:02:52]}  Bb7 {[%clk 0:02:18]} 15. Nc4 {[%clk 0:02:51]}  Rad8 {[%clk 0:02:17]} 16. Bb2 {[%clk 0:02:47]}  Nb8 {[%clk 0:02:17]} 17. Ne3 {[%clk 0:02:44]}  Nc6 {[%clk 0:02:13]} 18. Ncd5 {[%clk 0:02:42]}  Nxd5 {[%clk 0:02:12]} 19. Nxd5 {[%clk 0:02:43]}  Qe6 {[%clk 0:02:10]} 20. c3 {[%clk 0:02:42]}  Ne7 {[%clk 0:02:09]} 21. Qd2 {[%clk 0:02:30]}  f5 {[%clk 0:02:07]} 22. c4 {[%clk 0:02:17]}  Nc6 {[%clk 0:02:02]} 23. exf5 {[%clk 0:02:15]}  gxf5 {[%clk 0:02:02]} 24. Qg5 {[%clk 0:02:09]}  Qf7 {[%clk 0:01:55]} 25. Ne3 {[%clk 0:01:59]}  h6 {[%clk 0:01:52]} 26. Qh4 {[%clk 0:01:42]}  e4 {[%clk 0:01:52]} 27. Bxg7 {[%clk 0:01:27]}  Qxg7 {[%clk 0:01:52]} 28. Nxf5 {[%clk 0:00:46]}  Rxd1+ {[%clk 0:01:51]} 29. Rxd1 {[%clk 0:00:47]}  Rxf5 {[%clk 0:01:51]} 30. Bxe4 {[%clk 0:00:48]}  Rf8 {[%clk 0:01:29]} 31. Rd6 {[%clk 0:00:39]}  Ne5 {[%clk 0:01:29]} 32. Bxb7 {[%clk 0:00:25]}  Qxb7 {[%clk 0:01:30]} 33. Qxh6 {[%clk 0:00:24]}  Qf7 {[%clk 0:01:16]} 34. f4 {[%clk 0:00:22]}  Qf5 {[%clk 0:01:08]} 35. Re6 {[%clk 0:00:08]}  Qb1+ {[%clk 0:00:33]} 36. Kg2 {[%clk 0:00:08]}  Qc2+ {[%clk 0:00:34]} 37. Kh3 {[%clk 0:00:08]}  Qf5+ {[%clk 0:00:29]} 38. Kg2 {[%clk 0:00:09]}  Qc2+ {[%clk 0:00:12]} 39. Kh3 {[%clk 0:00:09]}  Qf5+ {[%clk 0:00:13]} 40. Kg2 {[%clk 0:00:10]}  Qe4+ {[%clk 0:00:12]} 41. Kh3 {[%clk 0:00:10]}  Qf5+ {[%clk 0:00:11]} 1/2-1/2


[Site "https://www.chess.com"]